Workbook

Sheet MENU
C1: FACTURACION | F1: REPORTES | I1: PRESENTAR | L1: CONFIGURACIONES
D17: ULTIMO Nº FACT. VTA PER. ANTERIOR | G17: 4000
D19: DIGITE EL CODIGO DEL PRODUCTO | G19: 1002
D21: SELECCIONE EL NOMBRE DEL CLIENTE | G21: CARLOS PEREZ ESTRELLA
D23: SELECCIONE EL NOMBRE PROVEEDOR | G23: DISTRIBUIDORA LACTEOS S.A.

Sheet F.COMPRA
A1: NOMBRE DEL NEGOCIO | W1: ALCONTADO | X1: 0
W2: ALCREDITO | X2: 1
A3: FACTURA DE COMPRAS
E4: ESTADO: | G4: =IF(F4<>"",VLOOKUP(F4,ESTBASE,2,0),"") -> 
A5: FECHA: | B5: =TODAY() -> 2013-05-28 | E5: COD. CONT: | F5: =IF(G4<>0,VLOOKUP(C7,Proveedor,2,0),2000) -> 
E6: Nº FACT:
A7: PROVEEDOR:
A8: DIRECCION: | C8: =IF(C7<>"",VLOOKUP(C7,Proveedor,3,0),"") -> 
A9: CANT. | B9: CODIGO | C9: PRODUCTO | D9: DESCRIPCION | E9: COSTO | F9: C. TOTAL
C10: =IF(B10<>"",VLOOKUP(B10,CATALOGO,2,0),"") ->  | F10: =A10*E10 -> 0
F11: =A11*E11 -> 0
F12: 0
F13: 0
F14: 0
F15: 0
F16: 0
F17: 0
F18: 0
F19: 0
F20: 0
F21: 0
F22: 0
F23: 0
F24: 0
F25: 0
F26: 0
F27: 0
E28: SUBTOTALES | F28: =SUM(F10:F27) -> 0
E29: IVA 15%
E30: DESCUENTO
E31: TOTAL | F31: =F28+F29-F30 -> 0

Sheet F.VENTA
A1: NOMBRE DEL NEGOCIO
A3: FACTURA DE VENTAS
E4: ESTADO: | G4: =IF(F4<>"",VLOOKUP(F4,ESTBASE,2,0),"") -> 
A5: FECHA: | B5: =TODAY() -> 2013-05-28 | E5: COD. CONT: | F5: =IF(G4<>0,VLOOKUP(C7,CLIENTES,2,0),1000) ->  | G5: Nº FACT.
E6: Nº FACT: | F6: =MAX(BASE!C3:C200)+1 -> 4006
A7: CLIENTE:
A8: DIRECCION: | C8: =IF(C7<>"",VLOOKUP(C7,CLIENTES,3,0),"") -> 
A9: CANT. | B9: CODIGO | C9: PRODUCTO | D9: DESCRIPCION | E9: PRECIO | F9: P. TOTAL
C10: =IF(B10<>"",VLOOKUP(B10,CATALOGO,2,0),"") ->  | E10: =IF(B10<>"",VLOOKUP(B10,CATALOGO,5,0),"") ->  | F10: =IF(A10>0,A10*E10,"") -> 
F11: =IF(A11>0,A11*E11,"") -> 
E28: SUBTOTALES | F28: =SUM(F10:F27) -> 0
E29: IVA 15% | F29: =F28*0.15 -> 0
E30: DESCUENTO
E31: TOTAL | F31: =F28+F29-F30 -> 0
A32: VENDIDO POR:

Sheet BASE
A1: FECHA | B1: Nº DE FACTURA | D1: CLIENTES | E1: PROVEEDORES | F1: ESTADO | G1: COD. CONT. | H1: CODIGO | I1: PRODUCTO | J1: DESCRIPCION | K1: PREC- COST | L1: COSTO REAL | M1: CANTIDADES | O1: VALORES | R1: ABONOS | U1: =MENU!G17 -> 4000
B2: COMPRA | C2: VENTA | M2: ENTRADA | N2: SALIDA | O2: DEBE | P2: HABER | Q2: COSTO TOTAL
A3: 0 | B3: 0 | C3: =U1 -> 4000 | D3: 0 | E3: 0 | F3: 0 | G3: 0 | H3: 0 | I3: =IF(H3<>"",VLOOKUP(H3,CATALOGO,2,0),"") -> ANULADO | J3: 0 | K3: 0 | L3: =IF(H3<>"",VLOOKUP(H3,CATALOGO,4,0),0) -> 0 | M3: 0 | N3: 0 | O3: 0 | P3: 0 | Q3: 0 | R3: 0
A4: 2013-05-25 | C4: 4001 | G4: 112001 | H4: 1001 | I4: ARROZ | J4: VENTA | K4: 60 | L4: 0 | N4: 45 | O4: =M4*K4 -> 0 | P4: =N4*K4 -> 2700 | Q4: =N4*L4 -> 0 | R4: 600
A5: 2013-05-25 | B5: 1001 | G5: 2111001 | H5: 1001 | I5: ARROZ | J5: CPRA | K5: 40 | L5: 0 | M5: 40 | O5: =M5*K5 -> 1600 | P5: =N5*K5 -> 0 | Q5: 0
A6: 2013-05-25 | B6: 1 | G6: 2111002 | H6: 1001 | I6: ARROZ | J6: DEV /V | K6: 65 | L6: 0 | M6: 5 | O6: =M6*K6 -> 325 | P6: =N6*K6 -> 0 | Q6: =N6*L6 -> 0 | R6: 700
A7: 2013-05-25 | B7: 1 | G7: 112002 | H7: 1001 | I7: ARROZ | J7: DEV/C | K7: 50 | L7: 0 | N7: 15 | O7: 0 | P7: 750 | Q7: 0
A8: 2013-05-28 | C8: 4002 | D8: CARLOS PEREZ ESTRELLA | F8: 0 | G8: 1000 | H8: 1001 | I8: ARROZ | K8: 25 | L8: 0 | N8: 45 | O8: 0 | P8: 1125 | Q8: 0
A9: 2013-05-28 | C9: 4003 | D9: ROGER PEREZ BELLO | F9: 0 | G9: 1000 | H9: 1004 | I9: HARINA | K9: 27 | L9: 0 | N9: 45 | O9: 0 | P9: 1215 | Q9: 0
A10: 2013-05-28 | C10: 4004 | D10: RIGO GARTH | F10: 0 | G10: 1000 | H10: 1004 | I10: HARINA | K10: 27 | L10: 0 | N10: 50 | O10: 0 | P10: 1350 | Q10: 0
A11: 2013-05-28 | B11: 50020 | E11: TOYOTA MOTORS S.A. | F11: 0 | G11: 2000 | H11: 1001 | I11: ARROZ | J11: COMPRA | K11: 35 | L11: 0 | M11: 450 | O11: 15750 | P11: 0 | Q11: 0
A12: 2013-05-28 | C12: 4005 | D12: CARLOS SANDOBAL | F12: 1 | G12: 112004 | H12: 1001 | I12: ARROZ | J12: VENTA | K12: 30 | L12: 0 | N12: 150 | O12: 0 | P12: 4500 | Q12: 0
L13: 0 | O13: 0 | P13: 0 | Q13: 0
L14: 0 | O14: 0 | P14: 0 | Q14: 0
L15: 0 | O15: 0 | P15: 0 | Q15: 0
L16: 0 | O16: 0 | P16: 0 | Q16: 0
L17: 0 | O17: 0 | P17: 0 | Q17: 0
L18: 0 | O18: 0 | P18: 0 | Q18: 0
L19: 0 | O19: 0 | P19: 0 | Q19: 0
L20: 0 | O20: 0 | P20: 0 | Q20: 0
L21: 0 | O21: 0 | P21: 0 | Q21: 0
L22: 0 | O22: 0 | P22: 0 | Q22: 0
L23: 0 | O23: 0 | P23: 0 | Q23: 0
L24: 0 | O24: 0 | P24: 0 | Q24: 0
L25: 0 | O25: 0 | P25: 0 | Q25: 0
L26: 0 | O26: 0 | P26: 0 | Q26: 0
L27: 0 | O27: 0 | P27: 0 | Q27: 0
L28: 0 | O28: 0 | P28: 0 | Q28: 0
L29: 0 | O29: 0 | P29: 0 | Q29: 0
L30: 0 | O30: 0 | P30: 0 | Q30: 0
L31: 0 | O31: 0 | P31: 0 | Q31: 0
L32: 0 | O32: 0 | P32: 0 | Q32: 0
L33: 0 | O33: 0 | P33: 0 | Q33: 0
L34: 0 | O34: 0 | P34: 0 | Q34: 0
I35: =IF(H35<>"",VLOOKUP(H35,CATALOGO,2,0),"") ->  | L35: =IF(H35<>"",VLOOKUP(H35,CATALOGO,4,0),0) -> 0 | O35: 0 | P35: 0 | Q35: 0
L36: 0 | O36: 0 | P36: 0 | Q36: 0
L37: 0 | O37: 0 | P37: 0 | Q37: 0
L38: 0 | O38: 0 | P38: 0 | Q38: 0
L39: 0 | O39: 0 | P39: 0 | Q39: 0
L40: 0 | O40: 0 | P40: 0 | Q40: 0
L41: 0 | O41: 0 | P41: 0 | Q41: 0
L42: 0 | O42: 0 | P42: 0 | Q42: 0
L43: 0 | O43: 0 | P43: 0 | Q43: 0
L44: 0 | O44: 0 | P44: 0 | Q44: 0
L45: 0 | O45: 0 | P45: 0 | Q45: 0
L46: 0 | O46: 0 | P46: 0 | Q46: 0
L47: 0 | O47: 0 | P47: 0 | Q47: 0
L48: 0 | O48: 0 | P48: 0 | Q48: 0
L49: 0 | O49: 0 | P49: 0 | Q49: 0
L50: 0 | O50: 0 | P50: 0 | Q50: 0
L51: 0 | O51: 0 | P51: 0 | Q51: 0
L52: 0 | O52: 0 | P52: 0 | Q52: 0
L53: 0 | O53: 0 | P53: 0 | Q53: 0
L54: 0 | O54: 0 | P54: 0 | Q54: 0
L55: 0 | O55: 0 | P55: 0 | Q55: 0
L56: 0 | O56: 0 | P56: 0 | Q56: 0
L57: 0 | O57: 0 | P57: 0 | Q57: 0
L58: 0 | O58: 0 | P58: 0 | Q58: 0
L59: 0 | O59: 0 | P59: 0 | Q59: 0
L60: 0 | O60: 0 | P60: 0 | Q60: 0
L61: 0 | O61: 0 | P61: 0 | Q61: 0
L62: 0 | O62: 0 | P62: 0 | Q62: 0
L63: 0 | O63: 0 | P63: 0 | Q63: 0
L64: 0 | O64: 0 | P64: 0 | Q64: 0
L65: 0 | O65: 0 | P65: 0 | Q65: 0
L66: 0 | O66: 0 | P66: 0 | Q66: 0
I67: =IF(H67<>"",VLOOKUP(H67,CATALOGO,2,0),"") ->  | L67: =IF(H67<>"",VLOOKUP(H67,CATALOGO,4,0),0) -> 0 | O67: 0 | P67: 0 | Q67: 0
L68: 0 | O68: 0 | P68: 0 | Q68: =N68*L68 -> 0
L69: 0 | O69: =M69*K69 -> 0 | P69: =N69*K69 -> 0 | Q69: 0
L70: 0 | O70: 0 | P70: 0 | Q70: 0
L71: 0 | O71: 0 | P71: 0 | Q71: 0
L72: 0 | O72: 0 | P72: 0 | Q72: 0
L73: 0 | O73: 0 | P73: 0 | Q73: 0
L74: 0 | O74: 0 | P74: 0 | Q74: 0
L75: 0 | O75: 0 | P75: 0 | Q75: 0
L76: 0 | O76: 0 | P76: 0 | Q76: 0
L77: 0 | O77: 0 | P77: 0 | Q77: 0
L78: 0 | O78: 0 | P78: 0 | Q78: 0
L79: 0 | O79: 0 | P79: 0 | Q79: 0
L80: 0 | O80: 0 | P80: 0 | Q80: 0
L81: 0 | O81: 0 | P81: 0 | Q81: 0
L82: 0 | O82: 0 | P82: 0 | Q82: 0
L83: 0 | O83: 0 | P83: 0 | Q83: 0
L84: 0 | O84: 0 | P84: 0 | Q84: 0
L85: 0 | O85: 0 | P85: 0 | Q85: 0
L86: 0 | O86: 0 | P86: 0 | Q86: 0
L87: 0 | O87: 0 | P87: 0 | Q87: 0
L88: 0 | O88: 0 | P88: 0 | Q88: 0
L89: 0 | O89: 0 | P89: 0 | Q89: 0
L90: 0 | O90: 0 | P90: 0 | Q90: 0
L91: 0 | O91: 0 | P91: 0 | Q91: 0
L92: 0 | O92: 0 | P92: 0 | Q92: 0
L93: 0 | O93: 0 | P93: 0 | Q93: 0
L94: 0 | O94: 0 | P94: 0 | Q94: 0
L95: 0 | O95: 0 | P95: 0 | Q95: 0
L96: 0 | O96: 0 | P96: 0 | Q96: 0
L97: 0 | O97: 0 | P97: 0 | Q97: 0
L98: 0 | O98: 0 | P98: 0 | Q98: 0
I99: =IF(H99<>"",VLOOKUP(H99,CATALOGO,2,0),"") ->  | L99: =IF(H99<>"",VLOOKUP(H99,CATALOGO,4,0),0) -> 0 | O99: 0 | P99: 0 | Q99: 0
L100: 0 | O100: 0 | P100: 0 | Q100: 0
L101: 0 | O101: 0 | P101: 0 | Q101: 0
L102: 0 | O102: 0 | P102: 0 | Q102: 0
L103: 0 | O103: 0 | P103: 0 | Q103: 0
L104: 0 | O104: 0 | P104: 0 | Q104: 0
L105: 0 | O105: 0 | P105: 0 | Q105: 0
L106: 0 | O106: 0 | P106: 0 | Q106: 0
L107: 0 | O107: 0 | P107: 0 | Q107: 0
L108: 0 | O108: 0 | P108: 0 | Q108: 0
L109: 0 | O109: 0 | P109: 0 | Q109: 0
L110: 0 | O110: 0 | P110: 0 | Q110: 0
L111: 0 | O111: 0 | P111: 0 | Q111: 0
L112: 0 | O112: 0 | P112: 0 | Q112: 0
L113: 0 | O113: 0 | P113: 0 | Q113: 0
L114: 0 | O114: 0 | P114: 0 | Q114: 0
L115: 0 | O115: 0 | P115: 0 | Q115: 0
L116: 0 | O116: 0 | P116: 0 | Q116: 0
L117: 0 | O117: 0 | P117: 0 | Q117: 0
L118: 0 | O118: 0 | P118: 0 | Q118: 0
L119: 0 | O119: 0 | P119: 0 | Q119: 0
L120: 0 | O120: 0 | P120: 0 | Q120: 0
L121: 0 | O121: 0 | P121: 0 | Q121: 0
L122: 0 | O122: 0 | P122: 0 | Q122: 0
L123: 0 | O123: 0 | P123: 0 | Q123: 0
L124: 0 | O124: 0 | P124: 0 | Q124: 0
L125: 0 | O125: 0 | P125: 0 | Q125: 0
L126: 0 | O126: 0 | P126: 0 | Q126: 0
L127: 0 | O127: 0 | P127: 0 | Q127: 0
L128: 0 | O128: 0 | P128: 0 | Q128: 0
L129: 0 | O129: 0 | P129: 0 | Q129: 0
L130: 0 | O130: 0 | P130: 0 | Q130: 0
I131: =IF(H131<>"",VLOOKUP(H131,CATALOGO,2,0),"") ->  | L131: =IF(H131<>"",VLOOKUP(H131,CATALOGO,4,0),0) -> 0 | O131: 0 | P131: 0 | Q131: 0
L132: 0 | O132: 0 | P132: 0 | Q132: =N132*L132 -> 0
L133: 0 | O133: =M133*K133 -> 0 | P133: =N133*K133 -> 0 | Q133: 0
L134: 0 | O134: 0 | P134: 0 | Q134: 0
L135: 0 | O135: 0 | P135: 0 | Q135: 0
L136: 0 | O136: 0 | P136: 0 | Q136: 0
L137: 0 | O137: 0 | P137: 0 | Q137: 0
L138: 0 | O138: 0 | P138: 0 | Q138: 0
L139: 0 | O139: 0 | P139: 0 | Q139: 0
L140: 0 | O140: 0 | P140: 0 | Q140: 0
L141: 0 | O141: 0 | P141: 0 | Q141: 0
L142: 0 | O142: 0 | P142: 0 | Q142: 0
L143: 0 | O143: 0 | P143: 0 | Q143: 0
L144: 0 | O144: 0 | P144: 0 | Q144: 0
L145: 0 | O145: 0 | P145: 0 | Q145: 0
L146: 0 | O146: 0 | P146: 0 | Q146: 0
L147: 0 | O147: 0 | P147: 0 | Q147: 0
L148: 0 | O148: 0 | P148: 0 | Q148: 0
L149: 0 | O149: 0 | P149: 0 | Q149: 0
L150: 0 | O150: 0 | P150: 0 | Q150: 0
L151: 0 | O151: 0 | P151: 0 | Q151: 0
L152: 0 | O152: 0 | P152: 0 | Q152: 0
L153: 0 | O153: 0 | P153: 0 | Q153: 0
L154: 0 | O154: 0 | P154: 0 | Q154: 0
L155: 0 | O155: 0 | P155: 0 | Q155: 0
L156: 0 | O156: 0 | P156: 0 | Q156: 0
L157: 0 | O157: 0 | P157: 0 | Q157: 0
L158: 0 | O158: 0 | P158: 0 | Q158: 0
L159: 0 | O159: 0 | P159: 0 | Q159: 0
L160: 0 | O160: 0 | P160: 0 | Q160: 0
L161: 0 | O161: 0 | P161: 0 | Q161: 0
L162: 0 | O162: 0 | P162: 0 | Q162: 0
I163: =IF(H163<>"",VLOOKUP(H163,CATALOGO,2,0),"") ->  | L163: =IF(H163<>"",VLOOKUP(H163,CATALOGO,4,0),0) -> 0 | O163: 0 | P163: 0 | Q163: 0
L164: 0 | O164: 0 | P164: 0 | Q164: 0
L165: 0 | O165: 0 | P165: 0 | Q165: 0
L166: 0 | O166: 0 | P166: 0 | Q166: 0
L167: 0 | O167: 0 | P167: 0 | Q167: 0
L168: 0 | O168: 0 | P168: 0 | Q168: 0
L169: 0 | O169: 0 | P169: 0 | Q169: 0
L170: 0 | O170: 0 | P170: 0 | Q170: 0
L171: 0 | O171: 0 | P171: 0 | Q171: 0
L172: 0 | O172: 0 | P172: 0 | Q172: 0
L173: 0 | O173: 0 | P173: 0 | Q173: 0
L174: 0 | O174: 0 | P174: 0 | Q174: 0
L175: 0 | O175: 0 | P175: 0 | Q175: 0
L176: 0 | O176: 0 | P176: 0 | Q176: 0
L177: 0 | O177: 0 | P177: 0 | Q177: 0
L178: 0 | O178: 0 | P178: 0 | Q178: 0
L179: 0 | O179: 0 | P179: 0 | Q179: 0
L180: 0 | O180: 0 | P180: 0 | Q180: 0
L181: 0 | O181: 0 | P181: 0 | Q181: 0
L182: 0 | O182: 0 | P182: 0 | Q182: 0
L183: 0 | O183: 0 | P183: 0 | Q183: 0
L184: 0 | O184: 0 | P184: 0 | Q184: 0
L185: 0 | O185: 0 | P185: 0 | Q185: 0
L186: 0 | O186: 0 | P186: 0 | Q186: 0
L187: 0 | O187: 0 | P187: 0 | Q187: 0
L188: 0 | O188: 0 | P188: 0 | Q188: 0
L189: 0 | O189: 0 | P189: 0 | Q189: 0
L190: 0 | O190: 0 | P190: 0 | Q190: 0
L191: 0 | O191: 0 | P191: 0 | Q191: 0
L192: 0 | O192: 0 | P192: 0 | Q192: 0
L193: 0 | O193: 0 | P193: 0 | Q193: 0
L194: 0 | O194: 0 | P194: 0 | Q194: 0
I195: =IF(H195<>"",VLOOKUP(H195,CATALOGO,2,0),"") ->  | L195: =IF(H195<>"",VLOOKUP(H195,CATALOGO,4,0),0) -> 0 | O195: 0 | P195: 0 | Q195: 0
L196: 0 | O196: 0 | P196: 0 | Q196: =N196*L196 -> 0
L197: 0 | O197: =M197*K197 -> 0 | P197: =N197*K197 -> 0 | Q197: 0
L198: 0 | O198: 0 | P198: 0 | Q198: 0
L199: 0 | O199: 0 | P199: 0 | Q199: 0
L200: 0 | O200: 0 | P200: 0 | Q200: 0

Sheet PRODUCTOS
A1: NOMBRE DE LA EMPRESA
A3: CATALOGO DE PRODUCTOS O ARTICULOS
A5: COD. PROD | B5: NOMBRE DEL ARTICULO | C5: DESCRIPCION | D5: COSTO R./U | E5: PRECIO/U
A7: 0 | B7: ANULADO
A8: 1000 | B8: GRANOS BASICOS
A9: 1001 | B9: ARROZ | D9: ='COSTO C.'!L7 -> 0 | E9: 30
A10: 1002 | B10: AZUCAR | D10: ='COSTO C.'!L8 -> 0 | E10: 25
A11: 1003 | B11: FRIJOLES | D11: ='COSTO C.'!L9 -> 0 | E11: 26
A12: 1004 | B12: HARINA | D12: ='COSTO C.'!L10 -> 0 | E12: 27
A13: 2000 | B13: COSMETICOS | E13: 28
A14: 2001 | B14: PERFUMES | D14: ='COSTO C.'!L11 -> 0 | E14: 29
A15: 2002 | B15: PINTURAS DE UÑA | D15: ='COSTO C.'!L12 -> 0 | E15: 30
A16: 2003 | B16: PINTURAS DE LABIO | D16: ='COSTO C.'!L13 -> 0 | E16: ='COSTO C.'!M13 -> 0
A17: 2004 | B17: LAPIZ DE CEJAS | D17: ='COSTO C.'!L14 -> 0 | E17: ='COSTO C.'!M14 -> 0

Sheet K (hidden)
A1: MOVIMIENTO DE INVENTARIOS
A2: DEL | B2: =BASE!A4 -> 2013-05-25 | C2: AL | D2: =TODAY() -> 2013-05-28
E3: =IF(MENU!G19<>"",VLOOKUP(MENU!G19,CATALOGO,1,0)) -> 1002 | F3: PRODUCTO: | H3: =IF(MENU!G19<>"",VLOOKUP(MENU!G19,CATALOGO,2,0)) -> AZUCAR
A4: FECHA | B4: Nº DE FACTURA | D4: CODIGO | E4: PRODUCTO | F4: DESCRIPCION | G4: PREC- COST | H4: CANTIDADES
B5: COMPRA | C5: VENTA | H5: ENTRADA | I5: SALIDA | J5: SALDOS
J6: =H6-I6 -> 0
J7: =IF((H7-I7)<>0,(H7-I7+J6),"") -> 
J8: =IF((H8-I8)<>0,(H8-I8+J7),"") -> 
J72: =IF((H72-I72)<>0,(H72-I72+J71),"") -> 
J136: =IF((H136-I136)<>0,(H136-I136+J135),"") -> 

Sheet E (hidden)
A1: ESTADO DE CUENTA CLIENTES
A2: DEL | B2: =BASE!A4 -> 2013-05-25 | C2: AL | D2: =TODAY() -> 2013-05-28
E3: =IF(MENU!G21<>"",VLOOKUP(MENU!G21,CLIENTES,2,0)) -> 112001 | F3: =IF(MENU!G21<>"",VLOOKUP(MENU!G21,CLIENTES,1,0)) -> CARLOS PEREZ ESTRELLA
A4: FECHA | B4: Nº DE FACT. | C4: CLIENTES | D4: COD. CONT. | E4: DESCRIPCION | F4: VALORES
B5: VENTA | F5: DEBE | G5: HABER | H5: SALDO
H6: =F6-G6 -> 0 | J6: =E!H6 -> 0
H7: =IF((F7-G7)<>0,(F7-G7+H6),"") -> 
H8: =IF((F8-G8)<>0,(F8-G8+H7),"") -> 

Sheet P (hidden)
A1: ESTADO DE CUENTA X PAGAR
A2: DEL | B2: =BASE!A4 -> 2013-05-25 | C2: AL | D2: =TODAY() -> 2013-05-28
E3: =IF(MENU!G23<>"",VLOOKUP(MENU!G23,Proveedor,2,0)) -> 2111002 | F3: =IF(MENU!G23<>"",VLOOKUP(MENU!G23,Proveedor,1,0)) -> DISTRIBUIDORA LACTEOS S.A.
A4: FECHA | B4: Nº DE FACT. | C4: PROVEEDOR | D4: COD. CONT. | E4: DESCRIPCION | F4: VALORES
B5: COMPRA | F5: DEBE | G5: HABER | H5: SALDO
H6: =G6-F6 -> 0
H7: =IF((F7-G7)<>0,(F7-G7+H6),"") -> 
H8: =IF((F8-G8)<>0,(F8-G8+H7),"") -> 

Sheet CLIENTES
A1: LISTA DE CLIENTES Y CONTROL DE CUENTAS POR COBRAR
A3: DEL | B3: =BASE!A4 -> 2013-05-25 | C3: AL | D3: =TODAY() -> 2013-05-28
E5: RESUMEN CUENTAS POR COBRAR
A6: NOMBRE DEL CLIENTE | B6: ID. CONTABLE | C6: DIRECCION | D6: TELEFONO | E6: DEBE | F6: HABER | G6: SALDO
A7: CARLOS PEREZ ESTRELLA | B7: 112001 | C7: Bº LOMA VERDE | D7: 88405102
A8: JUAN BLANDO CASTILLO | B8: 112002 | C8: Bº SANTA INES | D8: 84091378
A9: ROGER PEREZ BELLO | B9: 112003 | C9: Bº PETER FERRERA | D9: 27922406
A10: CARLOS SANDOBAL | B10: 112004 | C10: Bº EL COCAL | D10: 27922405
A11: RIGO GARTH | B11: 112005 | C11: Bº EL MOLEDOR | D11: 27922408
C14: SUMA TOTAL CUENTAS X C | E14: =SUM(E7:E13) -> 0 | F14: =SUM(F7:F13) -> 0 | G14: =IF(E14>=0,E14-F14,"") -> 0

Sheet PROVEEDORES
A1: LISTA DE PROVEEDORES Y CONTROL DE CUENTAS POR PAGAR
A3: DEL | B3: =BASE!A4 -> 2013-05-25 | C3: AL | D3: =TODAY() -> 2013-05-28
E5: RESUMEN CUENTAS POR PAGAR
A6: NOMBRE DEL PROVEEDOR | B6: COD. CONT. | C6: DIRECCION | D6: TELEFONO | E6: DEBE | F6: HABER | G6: SALDO
A7: COMERCIAL STAR S.A. | B7: 2111001 | C7: BILWI, Bº PETER FERRERA | D7: 27922406
A8: DISTRIBUIDORA LACTEOS S.A. | B8: 2111002 | C8: BILWI, Bº SANDINO | D8: 27922507
A9: CASAPERLLAS S.A | B9: 2111003 | C9: MANAUGA | D9: 27922406
A10: TOYOTA MOTORS S.A. | B10: 2111004 | C10: SAN JOSE | D10: 2240652
C14: SUMA TOTAL CUENTAS X P | E14: =SUM(E7:E13) -> 0 | F14: =SUM(F7:F13) -> 0 | G14: =IF(F14=0,F14-E14,"") -> 0

Sheet RESUMEN
A1: NOMBRE DEL NEGOCIO
A3: RESUMEN DE INVENTARIO MINIMO Y MAXIMO MAS UTLIDAD BRUTA DEL EJERCICIO
A5: DEL | B5: =BASE!A4 -> 2013-05-25 | C5: AL | D5: =TODAY() -> 2013-05-28
C7: RESUMEN DE KARDEX | F7: UTILIDAD BRUTA/V
A8: CODIGO | B8: PRODUCTO | C8: ENTRADA | D8: SADLIDA | E8: SALDOS | F8: VENTAS | G8: COSTOS | H8: UTILIDAD
A9: =PRODUCTOS!A8 -> 1000 | B9: =PRODUCTOS!B8 -> GRANOS BASICOS
A10: =PRODUCTOS!A9 -> 1001 | B10: =PRODUCTOS!B9 -> ARROZ
A11: =PRODUCTOS!A10 -> 1002 | B11: =PRODUCTOS!B10 -> AZUCAR
A12: =PRODUCTOS!A11 -> 1003 | B12: =PRODUCTOS!B11 -> FRIJOLES
A13: =PRODUCTOS!A12 -> 1004 | B13: =PRODUCTOS!B12 -> HARINA
A14: =PRODUCTOS!A13 -> 2000 | B14: =PRODUCTOS!B13 -> COSMETICOS
A15: =PRODUCTOS!A14 -> 2001 | B15: =PRODUCTOS!B14 -> PERFUMES
A16: =PRODUCTOS!A15 -> 2002 | B16: =PRODUCTOS!B15 -> PINTURAS DE UÑA
A17: =PRODUCTOS!A16 -> 2003 | B17: =PRODUCTOS!B16 -> PINTURAS DE LABIO
A18: =PRODUCTOS!A17 -> 2004 | B18: =PRODUCTOS!B17 -> LAPIZ DE CEJAS
C29: SUMA TOTAL | F29: =SUM(F9:F28) -> 0 | G29: =SUM(G9:G28) -> 0 | H29: 0

Sheet COSTO C.
A1: TABLA DE CALCULO DEL COSTO COMERCIAL Y EL PRECIO DE VENTA | O1: CALCULO DEL FACTOR EQUIVALENTE
A3: APLICA EL COSTO COMERCIAL METODO DE COSTOS POR RECARGOS Y EL METODO DEL FACTOR EQUIVALENTE
A5: Nº | B5: CANTIDAD | C5: ARTICULO | D5: COSTO/U | E5: FACTURA TOTAL | F5: REBAJA | H5: FACTURA NETO TOTAL | I5: TRANSPORTE | J5: FACT. EQUIV | K5: COSTO TOTAL | L5: COSTO C./U | M5: PRECIO VENTA 60% | O5: DETALLES | P5: % | Q5: IMPORTE
F6: % | G6: IMPORTE
B7: 45 | O7: TOTAL FACT.S/D
B8: 46 | O8: DESCUENTO
B9: 47 | O9: REBAJA
B10: 48 | O10: EMBALAJE
B11: 49 | O11: FLETE
B12: 50 | O12: RECARGOS
O13: FACT. TOTAL
O15: FACTOR EQUIV.
